fUST/lending_fUST_20250614
["ID","MTS","AMOUNT","RATE_DAILY","PERIOD"]
[365742471,1749864638523,-500.0,0.00022071,2]
[365742472,1749864638533,-565.92085964,0.00022071,2]
[365742473,1749864638542,-593.78475992,0.00022071,2]
[365742474,1749864638552,-500.0,0.00022071,2]
[365742475,1749864638561,-500.0,0.00022071,2]
[365742476,1749864638570,-500.0,0.00022071,2]
[365742477,1749864638580,-500.0,0.00022071,2]
[365742478,1749864638590,-170.77,0.0002219,3]
[365742479,1749864638600,-460.0,0.00022344,4]
[365742480,1749864638610,-460.0,0.00022618,4]
[365742481,1749864638620,-732.59122342,0.00022892,4]
[365742482,1749864638630,-644.14,0.00022892,4]
[365742483,1749864638640,-908.72,0.00022892,4]
[365742484,1749864638653,-1077.11,0.00022892,4]
[365742485,1749864638662,-460.0,0.00022892,4]
[365742486,1749864638672,-460.0,0.00022892,4]
[365742487,1749864638682,-460.0,0.00022892,4]
[365742488,1749864638693,-460.0,0.00022892,4]
[365742489,1749864638703,-409.29764583,0.00022893,4]
[365742490,1749864638712,-460.0,0.00022893,4]
[365742491,1749864638723,-460.0,0.00022893,4]
[365742492,1749864638733,-896.76,0.00022893,4]
[365742493,1749864638743,-460.0,0.00022893,4]
[365742494,1749864638752,-460.0,0.00022893,4]
[365742495,1749864638762,-460.0,0.00022893,4]
[365742496,1749864638772,-573.3,0.00022893,4]
[365742497,1749864638782,-460.0,0.00022893,4]
[365742498,1749864638792,-460.0,0.00022893,4]
[365742499,1749864638802,-460.0,0.00022893,4]
[365742500,1749864638811,-472.02,0.00022893,4]
[365742501,1749864638821,-460.0,0.00022893,4]
[365742502,1749864638831,-460.0,0.00022893,4]
[365742503,1749864638840,-571.89,0.00022893,4]
[365742504,1749864638850,-460.0,0.00022893,4]
[365742505,1749864638859,-1381.21,0.00022893,4]
[365742506,1749864638869,-526.21,0.00022893,4]
[365742507,1749864638878,-460.0,0.00022893,4]
[365742508,1749864638887,-460.0,0.00022894,4]
[365742509,1749864638897,-317.59794586,0.00022894,4]
[365742510,1749864638906,-460.0,0.00022894,4]
[365742511,1749864638916,-460.0,0.00022894,2]
[365742512,1749864638926,-460.0,0.00022894,4]
[365742513,1749864638935,-991.80741696,0.00022934,8]
[365742514,1749864638945,-151.0,0.0002295,7]
[365742515,1749864638955,-271.490356,0.0002295,7]
[365742516,1749864638964,-271.490356,0.0002295,7]
[365742517,1749864638973,-204.71,0.0002299,10]
[365742518,1749864638983,-400.06814175,0.00023,2]
[365742519,1749864638992,-5963.37362922,0.00023,2]
[365742520,1749864639001,-826.41635204,0.00023,2]
[365742521,1749864639011,-6018.62128194,0.00023,3]
[365742522,1749864639020,-15637.90381838,0.00023,2]
[365742523,1749864639029,-32090.10196026,0.00023,20]
[365742524,1749864639042,-404.48658154,0.00023,20]
[365742525,1749864639053,-1042.50000061,0.00023,20]
[365742526,1749864639070,-1325.86109324,0.00023,20]
[365742527,1749864639081,-274.34564338,0.00023,20]
[365742528,1749864639092,-403.19028049,0.00023,20]
[365742529,1749864639104,-744.89515212,0.00023,20]
[365742546,1749864640629,-700.0,0.00023,20]
[365742547,1749864640642,-1304.62068604,0.00023,20]
[365742548,1749864640657,-1722.20947883,0.00023,20]
[365742549,1749864640669,-348.04886732,0.00023,20]
[365742550,1749864640704,-350.8164,0.00023,20]
[365742556,1749864646509,-308.73710625,0.00021797,4]
[365742558,1749864646519,-266.95585233,0.00022578,3]
[365742559,1749864646529,-14237.82346085,0.00023,20]
[365742561,1749864646607,-499.99913388,0.00023,20]
[365742562,1749864690814,200.0,0.00024186,120]
[365742566,1749865403274,1939.20358376,0.00024948,120]
[365742568,1749865504538,500.0,0.00023,120]
[365742569,1749865536336,500.0,0.00023,120]
[365742570,1749865548444,500.0,0.00023,120]
[365742571,1749865558935,500.0,0.00023,120]
[365742572,1749865567733,500.0,0.00023,120]
[365742573,1749865622799,524.0,0.00023,120]
[365742574,1749865626092,-174.8689268,0.0002038,2]
[365742575,1749865626113,-367.82301861,0.00020725,2]
[365742576,1749865628127,-832.17698139,0.00020725,2]
[365742577,1749865628148,-300.0,0.00020725,2]
[365742578,1749865628168,-300.0,0.00020725,2]
[365742579,1749865628190,-5850.1067996,0.00020726,2]
[365742580,1749865645085,-4149.8932004,0.00020726,2]
[365742581,1749865645106,-572.252409,0.000209,2]
[365742582,1749865645127,-250.3483806,0.00020913,2]
[365742583,1749865645147,-179.8391492,0.00020963,2]
[365742584,1749865645167,-319.38856857,0.00021083,2]
[365742585,1749865645186,-250.0,0.00021479,2]
[365742586,1749865645207,-1715.06,0.00021536,2]
[365742587,1749865645228,-766.91759929,0.00021696,2]
[365742589,1749865649086,-12.56974113,0.00021696,2]
[365742590,1749865649107,-416.04024435,0.00021795,2]
[365742591,1749865652336,161.848385,0.00013699,2]
[365742635,1749865832696,-4740.1458778,0.00020796,2]
[365742636,1749865832764,-13.1509151,0.00020796,2]
[365742637,1749865832773,-381.501606,0.000209,2]
[365742638,1749865832783,-1693.23,0.00021587,2]
[365742639,1749865832792,-701.53596064,0.00021695,2]
[365742640,1749865832802,-300.0,0.00021793,2]
[365742641,1749865832811,-499.0,0.00021793,2]
[365742642,1749865832820,-440.98938075,0.00021794,4]
[365742643,1749865832830,-482.08325508,0.00021794,4]
[365742644,1749865832839,-484.09721057,0.00021794,4]
[365742645,1749865832848,-460.0,0.00021794,4]
[365742646,1749865832857,-460.0,0.00021794,4]
[365742647,1749865832867,-468.39291778,0.00021794,4]
[365742648,1749865832876,-4558.26,0.00021794,4]
[365742649,1749865832885,-990.59,0.00021794,4]
[365742650,1749865832895,-817.11,0.00021794,4]
[365742651,1749865832904,-473.82381858,0.00021794,4]
[365742652,1749865832913,-460.0,0.00021794,4]
[365742653,1749865832922,-460.0,0.00021794,4]
[365742654,1749865832931,-460.0,0.00021794,4]
[365742655,1749865832940,-460.0,0.00021794,4]
[365742656,1749865832949,-1302.14,0.00021794,4]
[365742657,1749865832959,-460.0,0.00021794,4]
[365742658,1749865832968,-851.41,0.00021794,4]
[365742659,1749865832978,-460.0,0.00021794,4]
[365742660,1749865832987,-1092.88,0.00021794,4]
[365742661,1749865832997,-460.0,0.00021794,4]
[365742662,1749865833007,-460.0,0.00021794,4]
[365742663,1749865833021,-594.09,0.00021794,4]
[365742664,1749865833031,-460.0,0.00021794,4]
[365742665,1749865833041,-460.0,0.00021794,4]
[365742666,1749865833050,-83.95975565,0.00021795,2]
[365742667,1749865833061,-500.0,0.00021795,2]
[365742668,1749865833185,-380.59180251,0.00021795,2]
[365742669,1749865833196,-500.0,0.00021795,2]
[365742670,1749865833205,-423.0279742,0.00021795,4]
[365742671,1749865833214,-460.0,0.00021795,4]
[365742672,1749865833224,-450.86291615,0.00021795,4]
[365742673,1749865833233,-493.68211636,0.00021795,4]
[365742674,1749865833242,-460.0,0.00021795,4]
[365742675,1749865833252,-460.0,0.00021795,4]
[365742676,1749865833263,-460.0,0.00021795,4]
[365742677,1749865833273,-466.34350949,0.00021795,4]
[365742678,1749865833283,-460.0,0.00021795,4]
[365742679,1749865833292,-460.0,0.00021795,4]
[365742680,1749865833302,-460.0,0.00021795,4]
[365742681,1749865833312,-492.96707874,0.00021795,4]
[365742682,1749865833321,-501.18,0.00021795,4]
[365742683,1749865833331,-460.0,0.00021795,4]
[365742684,1749865833340,-577.95137339,0.00021795,4]
[365742685,1749865833350,-440.13944918,0.00021795,4]
[365742686,1749865833359,-460.0,0.00021795,4]
[365742687,1749865833369,-1203.78,0.00021795,4]
[365742688,1749865833378,-460.0,0.00021795,4]
[365742689,1749865833387,-460.0,0.00021795,4]
[365742690,1749865833396,-460.0,0.00021795,4]
[365742691,1749865833405,-460.0,0.00021795,4]
[365742692,1749865833415,-664.45,0.00021795,4]
[365742693,1749865833424,-460.0,0.00021795,4]
[365742694,1749865833433,-413.93526834,0.00021795,4]
[365742695,1749865833444,-414.36450241,0.00021795,4]
[365742696,1749865833455,-460.0,0.00021795,4]
[365742697,1749865833464,-419.33104183,0.00021795,4]
[365742698,1749865833473,-460.0,0.00021795,4]
[365742699,1749865833482,-426.80718336,0.00021795,4]
[365742700,1749865833492,-460.0,0.00021795,4]
[365742701,1749865833501,-434.05480943,0.00021795,4]
[365742702,1749865833511,-424.21525838,0.00021795,4]
[365742703,1749865833521,-412.96813616,0.00021795,4]
[365742704,1749865833530,-425.48213205,0.00021795,4]
[365742705,1749865833540,-460.0,0.00021795,4]
[365742706,1749865833549,-460.0,0.00021795,4]
[365742707,1749865833558,-460.0,0.00021795,4]
[365742708,1749865833568,-627.39,0.00021795,4]
[365742709,1749865833577,-423.31485761,0.00021795,4]
[365742710,1749865833586,-269.43252074,0.00021795,4]
[365742711,1749865833595,-386.11170303,0.00021795,4]
[365742712,1749865833605,-460.0,0.00021795,4]
[365742713,1749865833614,-460.0,0.00021795,4]
[365742714,1749865833624,-460.0,0.00021795,4]
[365742715,1749865833633,-460.0,0.00021795,4]
[365742716,1749865833643,-432.4521656,0.00021795,4]
[365742717,1749865833652,-751.22,0.00021795,4]
[365742718,1749865833662,-460.0,0.00021795,4]
[365742719,1749865833671,-439.6877774,0.00021795,4]
[365742720,1749865833681,-1575.81,0.00021795,4]
[365742721,1749865833692,-460.0,0.00021795,4]
[365742722,1749865833704,-460.0,0.00021795,4]
[365742723,1749865833721,-460.0,0.00021795,4]
[365742724,1749865833731,-460.0,0.00021796,4]
[365742725,1749865833740,-460.0,0.00021796,4]
[365742726,1749865833750,-441.67418603,0.00021796,4]
[365742727,1749865833759,-453.33627862,0.00021796,4]
[365742728,1749865833768,-442.05364531,0.00021796,4]
[365742729,1749865833778,-457.0897974,0.00021796,4]
[365742730,1749865833788,-446.91531322,0.00021796,4]
[365742731,1749865833798,-424.45788244,0.00021796,4]
[365742732,1749865833808,-291.32123491,0.00021796,4]
[365742733,1749865833818,-440.65827832,0.00021796,4]
[365742734,1749865833828,-421.26311409,0.00021796,4]
[365742735,1749865833844,-444.34107046,0.00021796,4]
[365742736,1749865833861,-447.03065936,0.00021796,4]
[365742737,1749865833873,-441.81888698,0.00021796,4]
[365742738,1749865833883,-445.60216181,0.00021796,4]
[365742739,1749865833893,-447.85770072,0.00021796,4]
[365742740,1749865833902,-454.72444939,0.00021796,4]
[365742741,1749865833912,-503.50649347,0.00021796,4]
[365742742,1749865833922,-246.953,0.00021796,2]
[365742743,1749865833931,-461.09351753,0.00021796,4]
[365742744,1749865833940,-439.92132542,0.00021796,4]
[365742745,1749865833950,-445.67075369,0.00021796,4]
[365742746,1749865833959,-446.64522115,0.00021796,4]
[365742747,1749865833969,-558.72780527,0.00021796,4]
[365742748,1749865833978,-396.5840578,0.00021796,4]
[365742749,1749865833988,-454.06921236,0.00021796,4]
[365742750,1749865833998,-425.08190964,0.00021796,4]
[365742751,1749865834008,-442.06466222,0.00021796,4]
[365742752,1749865834020,-461.79159468,0.00021796,4]
[365742753,1749865834030,-444.42627129,0.00021796,4]
[365742754,1749865834040,-452.70361655,0.00021796,4]
[365742755,1749865834050,-449.32589572,0.00021796,4]
[365742756,1749865834060,-449.70749761,0.00021796,4]
[365742757,1749865834069,-441.73604657,0.00021796,4]
[365742758,1749865834079,-455.23771196,0.00021796,4]
[365742759,1749865834090,-445.34997184,0.00021796,4]
[365742760,1749865834100,-452.47968654,0.00021796,4]
[365742761,1749865834110,-445.15748064,0.00021796,4]
[365742762,1749865834120,-445.62785935,0.00021796,4]
[365742763,1749865834130,-453.07885821,0.00021796,4]
[365742764,1749865834141,-460.0,0.00021796,4]
[365742765,1749865834150,-482.19589228,0.00021796,4]
[365742766,1749865834160,-165.19926147,0.00021796,4]
[365742767,1749865834171,-479.12191682,0.00021796,4]
[365742768,1749865834181,-444.55079759,0.00021796,4]
[365742769,1749865834190,-439.2491385,0.00021796,4]
[365742770,1749865834201,-455.93092482,0.00021796,4]
[365742771,1749865834211,-336.41241002,0.00021796,4]
[365742772,1749865834220,-485.52202973,0.00021796,4]
[365742773,1749865834230,-450.87550856,0.00021796,4]
[365742774,1749865834240,-351.27161333,0.00021796,4]
[365742775,1749865834250,-457.26486344,0.00021796,4]
[365742776,1749865834261,-441.01687884,0.00021796,4]
[365742777,1749865834272,-441.35112151,0.00021796,4]
[365742778,1749865834281,-431.6357653,0.00021796,4]
[365742779,1749865834291,-445.15663189,0.00021796,4]
[365742780,1749865834301,-451.13556331,0.00021796,4]
[365742781,1749865834310,-434.00928452,0.00021796,4]
[365742782,1749865834320,-450.14766762,0.00021796,4]
[365742783,1749865834330,-455.65668635,0.00021796,4]
[365742784,1749865834340,-473.19275409,0.00021796,4]
[365742785,1749865834350,-454.13295142,0.00021796,4]
[365742786,1749865834360,-433.51868318,0.00021796,4]
[365742787,1749865834370,-498.3250849,0.00021796,4]
[365742788,1749865834379,-460.0,0.00021796,4]
[365742789,1749865834389,-460.0,0.00021796,4]
[365742790,1749865834398,-445.99856252,0.00021796,4]
[365742791,1749865834408,-451.70702414,0.00021796,4]
[365742792,1749865834417,-458.18904569,0.00021796,4]
[365742793,1749865834427,-424.36221229,0.00021796,4]
[365742794,1749865834437,-460.0,0.00021796,4]
[365742795,1749865834447,-444.97428935,0.00021796,4]
[365742796,1749865834457,-442.06120477,0.00021796,4]
[365742797,1749865834467,-455.81892006,0.00021796,4]
[365742798,1749865834476,-462.65495245,0.00021796,4]
[365742799,1749865834486,-460.0,0.00021796,4]
[365742800,1749865834495,-460.0,0.00021796,4]
[365742801,1749865834505,-460.0,0.00021796,4]
[365742802,1749865834514,-360.74804789,0.00021796,4]
[365742803,1749865834523,-498.5,0.00021796,4]
[365742804,1749865834532,-460.0,0.00021796,4]
[365742805,1749865834541,-439.36287977,0.00021796,4]
[365742806,1749865834551,-460.0,0.00021796,4]
[365742807,1749865834560,-437.18722141,0.00021796,4]
[365742808,1749865834570,-398.55674382,0.00021796,4]
[365742809,1749865834580,-488.1972074,0.00021796,4]
[365742810,1749865834590,-433.05673856,0.00021796,4]
[365742811,1749865834600,-588.82,0.00021796,2]
[365742812,1749865834610,-385.4094676,0.00021796,4]
[365742813,1749865834620,-500.0,0.00021796,4]
[365742814,1749865834630,-506.43991091,0.00021796,4]
[365742815,1749865834639,-458.47781786,0.00021796,4]
[365742816,1749865834649,-460.0,0.00021796,4]
[365742817,1749865834658,-1721.0,0.00021817,2]
[365742818,1749865834667,-160.0,0.00021899,2]
[365742819,1749865834676,-153.0,0.000219,2]
[365742820,1749865834686,-153.0,0.000219,2]
[365742821,1749865834695,-1589.35444136,0.000219,6]
[365742822,1749865834704,-175.0,0.00022,2]
[365742823,1749865834714,-173.0,0.00022,2]
[365742824,1749865834723,-735.7271789,0.00022,2]
[365742825,1749865834732,-1589.35444136,0.00022003,6]
[365742826,1749865834742,-153.0,0.00022027,2]
[365742827,1749865834751,-170.59,0.00022058,10]
[365742828,1749865834760,-852.96,0.00022058,10]
[365742829,1749865834771,-460.0,0.00022068,4]
[365742830,1749865834781,-460.0,0.00022068,4]
[365742831,1749865834790,-4558.26,0.00022068,4]
[365742832,1749865834800,-990.59,0.00022068,4]
[365742833,1749865834809,-817.11,0.00022068,4]
[365742834,1749865834819,-460.0,0.00022068,4]
[365742835,1749865834829,-351.21729324,0.00022068,4]
[365742836,1749865834838,-460.0,0.00022068,4]
[365742837,1749865834847,-460.0,0.00022068,4]
[365742838,1749865834857,-1302.14,0.00022068,4]
[365742839,1749865834866,-389.42238789,0.00022068,4]
[365742840,1749865834876,-851.41,0.00022068,4]
[365742841,1749865834886,-460.0,0.00022068,4]
[365742842,1749865834895,-1092.88,0.00022068,4]
[365742843,1749865834905,-460.0,0.00022068,4]
[365742844,1749865834914,-460.0,0.00022068,4]
[365742845,1749865834924,-594.09,0.00022068,4]
[365742846,1749865834933,-460.0,0.00022068,4]
[365742847,1749865834943,-460.0,0.00022068,4]
[365742848,1749865834952,-478.70637016,0.00022069,4]
[365742849,1749865834961,-460.0,0.00022069,4]
[365742850,1749865834971,-460.0,0.00022069,4]
[365742851,1749865834981,-460.0,0.00022069,4]
[365742852,1749865834990,-460.0,0.00022069,4]
[365742853,1749865835000,-460.0,0.00022069,4]
[365742854,1749865835011,-460.0,0.00022069,4]
[365742855,1749865835023,-501.18,0.00022069,4]
[365742856,1749865835033,-460.0,0.00022069,4]
[365742857,1749865835042,-460.0,0.00022069,4]
[365742858,1749865835052,-500.0,0.00022069,2]
[365742859,1749865835062,-1203.78,0.00022069,4]
[365742860,1749865835071,-460.0,0.00022069,4]
[365742861,1749865835081,-460.0,0.00022069,4]
[365742862,1749865835090,-460.0,0.00022069,4]
[365742863,1749865835101,-460.0,0.00022069,4]
[365742864,1749865835111,-664.45,0.00022069,4]
[365742865,1749865835120,-460.0,0.00022069,4]
[365742866,1749865835131,-460.0,0.00022069,4]
[365742867,1749865835140,-460.0,0.00022069,4]
[365742868,1749865835150,-460.0,0.00022069,4]
[365742869,1749865835160,-487.91366014,0.00022069,4]
[365742870,1749865835169,-439.54565803,0.00022069,4]
[365742871,1749865835179,-460.0,0.00022069,4]
[365742872,1749865835189,-627.39,0.00022069,4]
[365742873,1749865835198,-460.0,0.00022069,4]
[365742874,1749865835208,-460.0,0.00022069,4]
[365742875,1749865835217,-280.40381411,0.00022069,4]
[365742876,1749865835226,-460.0,0.00022069,4]
[365742877,1749865835235,-751.22,0.00022069,4]
[365742878,1749865835245,-460.0,0.00022069,4]
[365742879,1749865835255,-500.0,0.00022069,2]
[365742880,1749865835265,-1575.81,0.00022069,4]
[365742881,1749865835274,-460.0,0.00022069,4]
[365742882,1749865835284,-372.59023255,0.00022069,4]
[365742883,1749865835293,-420.0,0.00022069,4]
[365742884,1749865835303,-329.75516869,0.0002207,4]
[365742885,1749865835312,-205.0073179,0.0002207,4]
[365742886,1749865835406,-211.99726783,0.0002207,4]
[365742887,1749865835416,-460.0,0.0002207,4]
[365742888,1749865835426,-460.0,0.0002207,4]
[365742889,1749865835435,-463.26975137,0.0002207,4]
[365742890,1749865835444,-460.0,0.0002207,4]
[365742891,1749865835453,-460.0,0.0002207,4]
[365742892,1749865835474,-430.77806608,0.0002207,4]
[365742893,1749865835484,-498.5,0.0002207,4]
[365742894,1749865835494,-460.0,0.0002207,4]
[365742895,1749865835504,-460.0,0.0002207,4]
[365742896,1749865835515,-588.82,0.0002207,2]
[365742897,1749865835525,-460.0,0.0002207,4]
[365742898,1749865835535,-400.2280856,0.00022082,2]
[365742899,1749865835545,-617.0509543,0.000221,2]
[365742900,1749865835555,-1589.35444136,0.00022107,6]
[365742901,1749865835564,-701.53596062,0.00022146,2]
[365742902,1749865835574,-292.48954974,0.00022164,2]
[365742903,1749865835584,-500.0,0.000222,2]
[365742904,1749865835593,-500.0,0.000222,2]
[365742905,1749865835603,-192.0,0.00022203,2]
[365742906,1749865835615,-1721.0,0.00022205,2]
[365742907,1749865835625,-1589.35444136,0.0002221,6]
[365742908,1749865835634,-513.48021512,0.00022216,2]
[365742909,1749865835644,-500.0,0.00022216,2]
[365742910,1749865835653,-207.4,0.0002222,2]
[365742911,1749865835663,-1385.35298011,0.00022242,2]
[365742912,1749865835673,-511.67730118,0.00022261,2]
[365742913,1749865835682,-508.11809492,0.00022261,2]
[365742914,1749865835692,-500.0,0.00022261,2]
[365742915,1749865835702,-501.2699468,0.00022281,2]
[365742916,1749865835711,-477.62977906,0.00022281,2]
[365742917,1749865835721,-443.9601935,0.00022281,2]
[365742918,1749865835731,-817.96,0.00022309,3]
[365742919,1749865835740,-1589.35444136,0.00022314,7]
[365742920,1749865835750,-151.33568194,0.00022314,2]
[365742921,1749865835760,-218.39232522,0.00022314,2]
[365742922,1749865835770,-500.0,0.00022314,2]
[365742923,1749865835780,-500.0,0.00022314,2]
[365742924,1749865835790,-500.0,0.00022314,2]
[365742925,1749865835800,-5000.0,0.00022314,2]
[365742926,1749865835810,-500.0,0.00022314,2]
[365742927,1749865835820,-500.0,0.00022314,2]
[365742928,1749865835830,-500.0,0.00022314,2]
[365742929,1749865835840,-500.0,0.00022314,2]
[365742930,1749865835849,-500.0,0.00022314,2]
[365742931,1749865835859,-500.0,0.00022314,2]
[365742932,1749865835868,-500.0,0.00022314,2]
[365742933,1749865835878,-500.0,0.00022314,2]
[365742934,1749865835887,-500.0,0.00022314,2]
[365742935,1749865835897,-500.0,0.00022314,2]
[365742936,1749865835907,-500.0,0.00022314,2]
[365742937,1749865835916,-16000.0,0.00022314,2]
[365742938,1749865835926,-532.08174967,0.00022314,2]
[365742939,1749865835936,-2204.50937779,0.00022314,2]
[365742940,1749865835945,-151.0,0.00022314,2]
[365742941,1749865835956,-151.0,0.00022314,2]
[365742942,1749865835972,-151.0,0.00022314,2]
[365742943,1749865835983,-272.75853953,0.00022314,2]
[365742944,1749865835993,-545.29,0.00022317,3]
[365742945,1749865836002,-272.64,0.00022317,3]
[365742946,1749865836012,-1090.58,0.00022318,3]
[365742947,1749865836024,-2181.16,0.00022319,3]
[365742948,1749865836034,-500.0,0.00022327,2]
[365742949,1749865836043,-501.37810008,0.00022327,2]
[365742950,1749865836054,-500.0,0.00022327,2]
[365742951,1749865836066,-501.220304,0.00022327,2]
[365742952,1749865836075,-616.41391559,0.00022327,2]
[365742953,1749865836086,-275.59504976,0.00022328,2]
[365742954,1749865836097,-500.0,0.00022328,2]
[365742955,1749865836107,-500.0,0.00022328,2]
[365742956,1749865836119,-500.0,0.00022328,2]
[365742957,1749865836128,-500.0,0.00022328,2]
[365742958,1749865836138,-596.14460175,0.00022328,2]
[365742959,1749865836148,-500.0,0.00022328,2]
[365742960,1749865836159,-500.0,0.00022328,2]
[365742961,1749865836170,-265.64933194,0.00022328,2]
[365742962,1749865836181,-500.0,0.00022328,2]
[365742963,1749865836191,-500.0,0.00022328,2]
[365742964,1749865836200,-500.0,0.00022328,2]
[365742965,1749865836210,-500.0,0.00022328,2]
[365742966,1749865836220,-200.0,0.00022328,2]
[365742967,1749865836230,-500.0,0.00022328,2]
[365742968,1749865836240,-153.0,0.00022329,2]
[365742969,1749865836249,-153.0,0.00022329,2]
[365742970,1749865836258,-153.0,0.00022329,2]
[365742971,1749865836268,-154.8590012,0.00022329,2]
[365742972,1749865836277,-153.0,0.00022329,2]
[365742973,1749865836287,-153.0,0.00022329,2]
[365742974,1749865836296,-161.6101461,0.00022329,2]
[365742975,1749865836306,-1203.8189346,0.00022329,2]
[365742976,1749865836316,-307.9657817,0.00022329,2]
[365742977,1749865836327,-158.8399287,0.00022329,2]
[365742978,1749865836337,-158.8714084,0.00022329,2]
[365742979,1749865836347,-460.0,0.00022342,4]
[365742980,1749865836359,-536.73337732,0.00022342,4]
[365742981,1749865836368,-4558.26,0.00022342,4]
[365742982,1749865836379,-990.59,0.00022342,4]
[365742983,1749865836389,-817.11,0.00022342,4]
[365742984,1749865836399,-460.0,0.00022342,4]
[365742985,1749865836408,-460.0,0.00022342,4]
[365742986,1749865836418,-460.0,0.00022342,4]
[365742987,1749865836427,-1302.14,0.00022342,4]
[365742988,1749865836437,-851.41,0.00022342,4]
[365742989,1749865836446,-460.0,0.00022342,4]
[365742990,1749865836456,-1092.88,0.00022342,4]
[365742991,1749865836466,-460.0,0.00022342,4]
[365742992,1749865836476,-460.0,0.00022342,4]
[365742993,1749865836485,-594.09,0.00022342,4]
[365742994,1749865836495,-460.0,0.00022342,4]
[365742995,1749865836505,-460.0,0.00022342,4]
[365742996,1749865836514,-460.0,0.00022343,4]
[365742997,1749865836524,-460.0,0.00022343,4]
[365742998,1749865836538,-460.0,0.00022343,4]
[365742999,1749865836549,-460.0,0.00022343,4]
[365743000,1749865836558,-460.0,0.00022343,4]
[365743001,1749865836569,-490.8047218,0.00022343,4]
[365743002,1749865836578,-501.18,0.00022343,4]
[365743003,1749865836587,-460.0,0.00022343,4]
[365743004,1749865836597,-425.65709177,0.00022343,4]
[365743005,1749865836606,-1203.78,0.00022343,4]
[365743006,1749865836616,-460.0,0.00022343,4]
[365743007,1749865836626,-460.0,0.00022343,4]
[365743008,1749865836637,-460.0,0.00022343,4]
[365743009,1749865836647,-419.1547185,0.00022343,4]
[365743010,1749865836657,-664.45,0.00022343,4]
[365743011,1749865836667,-460.0,0.00022343,4]
[365743012,1749865836676,-460.0,0.00022343,4]
[365743013,1749865836686,-460.0,0.00022343,4]
[365743014,1749865836695,-460.0,0.00022343,4]
[365743015,1749865836705,-460.0,0.00022343,4]
[365743016,1749865836715,-627.39,0.00022343,4]
[365743017,1749865836725,-460.0,0.00022343,4]
[365743018,1749865836735,-316.4889993,0.00022343,4]
[365743019,1749865836744,-460.0,0.00022343,4]
[365743020,1749865836754,-751.22,0.00022343,4]
[365743021,1749865836765,-460.0,0.00022343,4]
[365743022,1749865836774,-847.66953869,0.00022343,4]
[365743040,1749865838654,-547.07,0.00021795,4]
[365743041,1749865838664,-547.07,0.00022069,4]
[365743042,1749865838675,-500.0,0.00022313,2]
[365743043,1749865838684,-192.91653483,0.00022313,2]
[365743044,1749865838693,-500.0,0.00022313,2]
[365743045,1749865838703,-267.30122122,0.00022313,2]
[365743046,1749865838713,-728.14046131,0.00022343,4]
[365743047,1749865838722,-460.0,0.00022343,4]
[365743048,1749865838732,-547.07,0.00022343,4]
[365743049,1749865838847,-460.0,0.00022344,4]
[365743050,1749865838857,-460.0,0.00022344,4]
[365743051,1749865838867,-460.0,0.00022344,4]
[365743052,1749865838876,-460.0,0.00022344,4]
[365743053,1749865838886,-498.5,0.00022344,4]
[365743054,1749865838895,-460.0,0.00022344,4]
[365743055,1749865838904,-460.0,0.00022344,4]
[365743056,1749865838914,-588.82,0.00022344,2]
[365743057,1749865838923,-460.0,0.00022344,4]
[365743058,1749865838933,-160.4322538,0.00022356,2]